fUST/lending_fUST_20260123
["ID","MTS","AMOUNT","RATE_DAILY","PERIOD"]
[403092045,1769149838704,-371.29740831,0.00013699,2]
[403092046,1769149838713,-597.08107855,0.00013699,2]
[403092047,1769149838723,-500.0,0.00013699,2]
[403092048,1769149838733,-500.0,0.00013699,2]
[403092049,1769149838744,-158.72684432,0.00013699,2]
[403092050,1769149838754,-347.42013826,0.00013699,2]
[403092051,1769149838764,-500.0,0.00013699,2]
[403092052,1769149838773,-506.91384298,0.00013699,2]
[403092053,1769149838783,-500.0,0.00013699,2]
[403092054,1769149838793,-501.55209363,0.00013699,2]
[403092055,1769149838803,-464.52834274,0.00013699,2]
[403092056,1769149838815,-35.47165726,0.00013699,2]
[403092057,1769149838825,-411.61068939,0.00013699,2]
[403092058,1769149838835,-500.0,0.00013699,2]
[403092059,1769149838848,-500.0,0.00013699,2]
[403092060,1769149838858,-304.77504743,0.00013699,2]
[403092061,1769149838867,-500.0,0.00013699,2]
[403092062,1769149838878,-468.02713696,0.00013699,2]
[403092063,1769149838888,-500.0,0.00013699,2]
[403092064,1769149838897,-500.0,0.00013699,2]
[403092065,1769149838907,-500.0,0.00013699,2]
[403092066,1769149838917,-559.57983038,0.00013699,2]
[403092067,1769149838926,-500.0,0.00013699,2]
[403092068,1769149838935,-165.49560138,0.00013699,2]
[403092069,1769149838945,-588.93831919,0.00013699,2]
[403092070,1769149838955,-500.0,0.00013699,2]
[403092071,1769149838965,-500.0,0.00013699,2]
[403092072,1769149838974,-500.43009045,0.00013699,2]
[403092073,1769149838983,-500.0,0.00013699,2]
[403092074,1769149838993,-500.0,0.00013699,2]
[403092075,1769149839003,-500.0,0.00013699,2]
[403092076,1769149839012,-500.0,0.00013699,2]
[403092077,1769149839022,-500.0,0.00013699,2]
[403092078,1769149839031,-500.0,0.00013699,2]
[403092079,1769149839044,-500.0,0.00013699,2]
[403092080,1769149839053,-500.0,0.00013699,2]
[403092081,1769149839064,-475.24416062,0.00013699,2]
[403092082,1769149839074,-500.0,0.00013699,2]
[403092083,1769149839084,-500.0,0.00013699,2]
[403092084,1769149839093,-446.84779818,0.00013699,2]
[403092085,1769149839103,-500.0,0.00013699,2]
[403092086,1769149839112,-500.0,0.00013699,2]
[403092087,1769149839122,-500.0,0.00013699,2]
[403092088,1769149839131,-500.0,0.00013699,2]
[403092089,1769149839141,-500.0,0.00013699,2]
[403092090,1769149839151,-500.0,0.00013699,2]
[403092091,1769149839160,-500.0,0.00013699,2]
[403092092,1769149839170,-500.0,0.00013699,2]
[403092093,1769149839180,-500.25020701,0.00013699,2]
[403092094,1769149839189,-500.0,0.00013699,2]
[403092095,1769149839199,-500.0,0.00013699,2]
[403092096,1769149839210,-500.0,0.00013699,2]
[403092097,1769149839220,-500.0,0.00013699,2]
[403092098,1769149839230,-500.0,0.00013699,2]
[403092099,1769149839239,-500.0,0.00013699,2]
[403092100,1769149839250,-459.93885031,0.00013699,2]
[403092101,1769149839261,-500.0,0.00013699,2]
[403092102,1769149839271,-500.0,0.00013699,2]
[403092103,1769149839280,-500.0,0.00013699,2]
[403092104,1769149839290,-500.0,0.00013699,2]
[403092105,1769149839299,-500.0,0.00013699,2]
[403092106,1769149839309,-253.723,0.00013699,2]
[403092107,1769149839318,-178.71,0.00013699,2]
[403092108,1769149839327,-205.50073562,0.00013699,2]
[403092109,1769149839337,-500.0,0.0001382,2]
[403092110,1769149839346,-500.0,0.0001382,2]
[403092111,1769149839355,-1129.15735953,0.00013821,2]
[403092112,1769149839364,-500.0,0.00013821,2]
[403092113,1769149839374,-500.0,0.00013821,2]
[403092114,1769149839384,-1000.0,0.00013821,2]
[403092115,1769149839394,-500.0,0.00013821,2]
[403092116,1769149839403,-500.0,0.00013821,2]
[403092117,1769149839412,-1000.0,0.00013821,2]
[403092118,1769149839422,-544.48459412,0.00013821,2]
[403092119,1769149839432,-1000.0,0.00013821,2]
[403092120,1769149839442,-500.0,0.00013821,2]
[403092121,1769149839453,-1000.0,0.00013821,2]
[403092122,1769149839462,-500.0,0.00013821,2]
[403092123,1769149839472,-500.0,0.00013821,2]
[403092124,1769149839482,-538.40764122,0.00013868,2]
[403092125,1769149839492,-2158.15274376,0.00013872,2]
[403092126,1769149839506,-1669.6156054,0.00013872,2]
[403092127,1769149839518,-3.15963441,0.00013872,2]
[403092128,1769149839528,-600.0,0.00013888,2]
[403092129,1769149839538,-67.53422133,0.00013896,2]
[403092130,1769149839550,-176.93198367,0.00013896,2]
[403092131,1769149839559,-150.22349183,0.00013973,2]
[403092132,1769149839568,-213.9305245,0.00013989,2]
[403092173,1769149840536,-500.0,0.00013598,2]
[403092175,1769149840546,-286.0694755,0.00013989,2]
[403092177,1769149840555,-500.0,0.00013989,2]
[403092179,1769149840564,-500.0,0.00013989,2]
[403092217,1769149840880,-500.0,0.00013989,2]
[403092219,1769149840891,-500.0,0.00013995,2]
[403092222,1769149840902,-500.0,0.00013995,2]
[403092224,1769149840913,-500.0,0.00013995,2]
[403092226,1769149840924,-500.0,0.00013995,2]
[403092227,1769149840934,-500.0,0.00013995,2]
[403092230,1769149840943,-500.0,0.00013995,2]
[403092232,1769149840953,-500.0,0.00013995,2]
[403092234,1769149840962,-500.0,0.00013995,2]
[403092236,1769149840971,-500.0,0.00013995,2]
[403092238,1769149840980,-487.0,0.00013996,2]
[403092240,1769149840990,-194.75705251,0.00013996,2]
[403092264,1769149841214,-11.64523355,0.00013996,2]
[403092266,1769149841226,-280.59771394,0.00013996,2]
[403092268,1769149841235,-487.0,0.00013996,2]
[403092270,1769149841244,-487.0,0.00013996,2]
[403092272,1769149841254,-487.0,0.00013996,2]
[403092274,1769149841264,-487.0,0.00013996,2]
[403092276,1769149841274,-487.0,0.00013996,2]
[403092278,1769149841283,-487.0,0.00013996,2]
[403092280,1769149841293,-487.0,0.00013996,2]
[403092282,1769149841302,-656.86,0.00013996,2]
[403092284,1769149841311,-1000.0,0.00014093,2]
[403092286,1769149841320,-1890.64,0.000141,2]
[403092288,1769149841329,-500.0,0.00014247,2]
[403092290,1769149841339,-1000.0,0.00014247,2]
[403092292,1769149841349,-500.0,0.00014247,2]
[403092294,1769149841358,-500.0,0.00014247,2]
[403092296,1769149841368,-1000.0,0.00014247,2]
[403092298,1769149841377,-500.0,0.00014247,2]
[403092300,1769149841386,-500.0,0.00014247,2]
[403092302,1769149841395,-500.0,0.00014247,2]
[403092304,1769149841404,-1000.0,0.00014247,2]
[403092306,1769149841414,-1000.0,0.00014247,2]
[403092308,1769149841423,-952.86295611,0.00014247,2]
[403092310,1769149841432,-1000.0,0.00014247,2]
[403092312,1769149841441,-451.49711237,0.00014247,2]
[403092314,1769149841451,-500.0,0.00014247,2]
[403092316,1769149841460,-500.0,0.00014247,2]
[403092317,1769149841468,-520.31200096,0.00014247,2]
[403092319,1769149841477,-500.0,0.00014247,2]
[403092321,1769149841486,-500.0,0.00014247,2]
[403092323,1769149841496,-500.0,0.00014247,2]
[403092325,1769149841504,-1000.0,0.00014247,2]
[403092327,1769149841514,-500.0,0.00014247,2]
[403092329,1769149841523,-500.0,0.00014247,2]
[403092331,1769149841532,-1000.0,0.00014247,2]
[403092333,1769149841541,-969.08729295,0.00014247,2]
[403092335,1769149841550,-1000.0,0.00014247,2]
[403092337,1769149841559,-1000.0,0.00014247,2]
[403092339,1769149841568,-969.1337542,0.00014351,2]
[403092341,1769149841577,-228.15435905,0.00014361,2]
[403092343,1769149841586,-1500.0,0.00014368,2]
[403092345,1769149841595,-1500.0,0.00014368,2]
[403092346,1769149841604,-1500.0,0.00014368,2]
[403092348,1769149841613,-1500.0,0.00014368,2]
[403092350,1769149841623,-1494.77935175,0.00014377,2]
[403092352,1769149841632,-1500.0,0.00014795,2]
[403092354,1769149841642,-411.32358173,0.00014795,2]
[403092356,1769149841651,-1503.31834388,0.00014795,2]
[403092358,1769149841660,-1500.0,0.00014795,2]
[403092360,1769149841668,-1500.0,0.00014795,2]
[403092362,1769149841678,-1500.0,0.00014795,2]
[403092364,1769149841687,-420.0,0.00014903,2]
[403092366,1769149841696,-2000.0,0.00014916,2]
[403092368,1769149841707,-331.79540359,0.00014916,2]
[403092370,1769149841715,-368.64769452,0.00014916,2]
[403092477,1769149844395,-902.05067434,0.00014916,2]
[403092482,1769149846271,-729.30163114,0.00014916,2]
[403092484,1769149846280,-2000.0,0.00014916,2]
[403092486,1769149846290,-1722.90445191,0.00014924,2]
[403092488,1769149846299,-1200.0,0.00014957,2]
[403092490,1769149846308,-207.803674,0.00015068,2]
[403092491,1769149846317,-720.0,0.00015277,2]
[403092493,1769149846327,-2034.08480506,0.00015342,2]
[403092494,1769149846336,-2000.0,0.00015342,2]
[403092495,1769149846345,-2000.0,0.00015342,2]
[403092496,1769149846355,-2000.0,0.00015342,2]
[403092497,1769149846364,-3830.92798354,0.00015379,2]
[403092498,1769149846374,-305.74770377,0.0001545,2]
[403092499,1769149846383,-19672.89599099,0.0001545,2]
[403092501,1769149846393,-2150.738,0.0001545,2]
[403092503,1769149846402,-615.83719668,0.00015464,2]
[403092505,1769149846411,-2500.0,0.00015464,2]
[403092507,1769149846420,-478.03673504,0.00015464,2]
[403092508,1769149846431,-2021.96326496,0.00015464,2]
[403092509,1769149846441,-395.7406355,0.00015546,2]
[403092510,1769149846450,-5902.81434305,0.0001564,2]
[403092511,1769149846460,-1507.26398958,0.0001589,2]
[403092512,1769149846469,-2500.0,0.0001589,2]
[403092513,1769149846479,-2500.0,0.0001589,2]
[403092514,1769149846488,-3000.0,0.00016012,2]
[403092515,1769149846498,-587.0,0.00016334,2]
[403092516,1769149846508,-262.95756636,0.00016361,2]
[403092517,1769149846517,-151.0,0.00016438,2]
[403092518,1769149846526,-204.462839,0.00016438,2]
[403092519,1769149846536,-151.0,0.00016438,2]
[403092520,1769149846545,-151.0,0.00016438,2]
[403092521,1769149846554,-151.0,0.00016438,2]
[403092522,1769149846563,-151.0,0.00016438,2]
[403092523,1769149846572,-151.0,0.00016438,2]
[403092524,1769149846581,-151.0,0.00016438,2]
[403092525,1769149846590,-3000.0,0.00016438,2]
[403092526,1769149846600,-1084.31671065,0.00016438,2]
[403092527,1769149846609,-864.0,0.00016805,2]
[403092528,1769149846623,-151.0,0.00016805,2]
[403092529,1769149846632,-151.0,0.00016805,2]
[403092530,1769149846642,-3830.92798354,0.00016886,2]
[403092531,1769149846651,-191.2189,0.00016986,2]
[403092532,1769149846661,-151.0,0.00017,2]
[403092533,1769149846671,-151.0,0.000176,2]
[403092534,1769149846680,-373.0,0.00017902,2]
[403092535,1769149846690,-500.0,0.00018098,2]
[403092536,1769149846699,-151.0,0.000182,2]
[403092537,1769149846709,-244.77146257,0.00018325,2]
[403092538,1769149846719,-462.0,0.00018325,2]
[403092539,1769149846728,-297.76077367,0.00018361,2]
[403092540,1769149846738,-3830.92798354,0.00018393,2]
[403092541,1769149846748,-462.0,0.00018462,2]
[403092542,1769149846759,-1000.0,0.00018485,2]
[403092543,1769149846769,-207.803674,0.00018493,2]
[403092544,1769149846778,-462.0,0.00018599,2]
[403092545,1769149846788,-462.0,0.00018736,2]
[403092546,1769149846798,-151.0,0.000188,2]
[403092547,1769149846807,-462.0,0.00018873,2]
[403092548,1769149846817,-88735.43604298,0.0001899,2]
[403092549,1769149846826,-151.0,0.0001899,2]
[403092550,1769149846837,-213.42653119,0.0001899,2]
[403092551,1769149846856,-462.0,0.0001901,2]
[403092552,1769149846865,-462.0,0.00019147,2]
[403092553,1769149846875,-151.0,0.00019178,2]
[403092554,1769149846884,-151.0,0.00019178,2]
[403092555,1769149846895,-151.0,0.00019178,2]
[403092556,1769149846905,-151.0,0.00019178,2]
[403092557,1769149846914,-270.250949,0.00019178,2]
[403092558,1769149846924,-178.0,0.00019239,2]
[403092559,1769149846934,-462.0,0.00019284,2]
[403092560,1769149846943,-151.0,0.000194,2]
[403092561,1769149846954,-462.0,0.00019421,2]
[403092562,1769149846964,-462.0,0.00019558,2]
[403092563,1769149846974,-462.0,0.00019695,2]
[403092564,1769149846983,-500.0,0.00019799,2]
[403092565,1769149846994,-500.0,0.00019799,2]
[403092566,1769149847004,-500.0,0.00019799,2]
[403092567,1769149847014,-500.0,0.00019799,2]
[403092568,1769149847024,-500.0,0.00019799,2]
[403092569,1769149847034,-500.0,0.00019799,2]
[403092570,1769149847043,-500.0,0.00019799,2]
[403092571,1769149847053,-500.0,0.00019799,2]
[403092572,1769149847063,-500.0,0.00019799,2]
[403092573,1769149847072,-462.0,0.00019832,2]
[403092574,1769149847081,-3830.92798354,0.000199,2]
[403092575,1769149847091,-462.0,0.00019969,2]
[403092576,1769149847100,-500.0,0.00019999,2]
[403092577,1769149847109,-500.0,0.00019999,2]
[403092578,1769149847119,-583.95253597,0.00019999,2]
[403092579,1769149847128,-40014.76374007,0.0002,2]
[403092580,1769149863257,500.0,0.00013273,2]
[403092581,1769149866528,217.47815878,0.00013273,2]
[403092582,1769149867220,500.0,0.00013273,2]
[403092583,1769149867681,500.0,0.00013273,2]
[403092584,1769149868080,500.0,0.00013273,2]
[403092585,1769149873288,150.0,7.728e-05,2]
[403092586,1769149873710,249.22,8.431e-05,2]
[403092587,1769149874104,373.83,9.134e-05,2]
[403092588,1769149874513,498.44,9.836e-05,2]
[403092589,1769149874944,623.06,0.00010539,2]
[403092590,1769149875368,747.67,0.00011241,2]
[403092591,1769149875787,872.28,0.00011944,2]
[403092592,1769149876093,500.74694559,0.00013273,2]
[403092593,1769149876212,996.89,0.00012646,2]
[403092594,1769149876625,1121.5,0.00013349,2]
[403092595,1769149878431,500.0,0.00013273,2]
[403092596,1769149881384,500.0,0.00013273,2]
[403092597,1769149882456,500.0,0.00013273,2]
[403092598,1769149923809,148.89489563,0.00013273,2]
[403092599,1769149923872,351.10510437,0.00013273,2]
[403092600,1769149924358,500.0,0.00013273,2]
[403092601,1769149927039,500.0,0.00013273,2]
[403092602,1769149931669,232.86562052,0.00013273,2]
[403092603,1769149935933,500.0,0.00013273,2]
[403092604,1769149948919,150.0,8.954e-05,2]
[403092605,1769149949314,165.56,9.768e-05,2]
[403092606,1769149949717,248.34,0.00010582,2]
[403092607,1769149950254,331.12,0.00011396,2]
[403092608,1769149950671,413.9,0.0001221,2]
[403092609,1769149951070,496.67,0.00013024,2]
[403092610,1769149984505,500.0,0.00013273,2]
[403092611,1769149984578,315.65928107,0.00013273,2]
[403092612,1769149987623,500.0,0.00013273,2]
[403092613,1769149987683,500.0,0.00013273,2]
[403092614,1769149987748,500.74636388,0.00013273,2]
[403092615,1769149991099,159.63525752,0.00013273,2]
[403092616,1769149993918,502.05000252,0.00013273,2]
[403092617,1769149994248,269.22730713,0.00013273,2]
[403092618,1769149998045,500.0,0.00013273,2]
[403092619,1769150000271,500.0,0.00013273,2]
[403092620,1769150000361,500.0,0.00013273,2]
[403092621,1769150000555,502.31062213,0.00013273,2]
[403092622,1769150001192,500.0,0.00013273,2]
[403092623,1769150001270,360.82044086,0.00013273,2]
[403092624,1769150001322,139.17955914,0.00013273,2]
[403092625,1769150001769,500.0,0.00013273,2]
[403092626,1769150001831,500.0,0.00013273,2]
[403092627,1769150002119,500.0,0.00013273,2]
[403092628,1769150004310,500.0,0.00013273,2]
[403092629,1769150019615,496.51207525,0.00011091,2]
[403092630,1769150025801,150.0,7.775e-05,2]
[403092631,1769150026209,176.21,8.482e-05,2]
[403092632,1769150026605,264.31,9.189e-05,2]
[403092633,1769150027027,352.41,9.896e-05,2]
[403092634,1769150027543,440.51,0.00010602,2]
[403092635,1769150027960,528.62,0.00011309,2]
[403092636,1769150028364,616.72,0.00012016,2]
[403092637,1769150028773,704.82,0.00012723,2]
[403092638,1769150029205,792.93,0.0001343,2]
[403092639,1769150044026,548.80962332,0.00013273,2]
[403092640,1769150046461,500.0,0.00013273,2]
[403092641,1769150047677,3928.15830143,0.00013469,2]
[403092642,1769150047736,1071.84169857,0.00013469,2]
[403092643,1769150056438,500.0,0.00013273,2]
[403092644,1769150070020,5000.0,0.00013469,2]
[403092645,1769150092377,5000.0,0.00013458,2]
[403092646,1769150100648,174.54,7.771e-05,2]
[403092647,1769150101059,349.08,8.477e-05,2]
[403092648,1769150101525,523.61,9.184e-05,2]
[403092649,1769150101924,698.15,9.89e-05,2]
[403092650,1769150102323,872.69,0.00010597,2]
[403092651,1769150102739,1047.23,0.00011303,2]
[403092652,1769150103138,1221.77,0.0001201,2]
[403092653,1769150103660,112.94,0.00013273,2]
[403092654,1769150103723,387.06,0.00013273,2]
[403092655,1769150104082,1396.31,0.00012716,2]
[403092656,1769150104515,1570.84,0.00013423,2]
[403092657,1769150106789,500.0,0.00013273,2]
[403092658,1769150114725,5000.0,0.00013451,2]
[403092659,1769150117652,408.995523,0.00013273,2]
[403092660,1769150118853,500.0,0.00013273,2]
[403092661,1769150119321,236.804477,0.00013273,2]
[403092662,1769150119382,263.195523,0.00013273,2]
[403092663,1769150119459,500.9366246,0.00013273,2]
[403092664,1769150120972,500.0,0.00013273,2]
[403092665,1769150121048,332.84054577,0.00013273,2]
[403092666,1769150121152,500.0,0.00013273,2]
[403092667,1769150121219,500.0,0.00013273,2]
[403092668,1769150121290,500.0,0.00013273,2]
[403092669,1769150121472,500.0,0.00013273,2]
[403092670,1769150137562,5000.0,0.00013441,2]
[403092671,1769150160237,5000.0,0.00013441,2]
[403092672,1769150163959,500.0,0.00013273,2]
[403092673,1769150164113,218.36195689,0.00013273,2]
[403092674,1769150164868,165.85487306,0.00013273,2]
[403092675,1769150164932,500.0,0.00013273,2]
[403092676,1769150165069,500.0,0.00013273,2]
[403092677,1769150165247,500.0,0.00013273,2]
[403092678,1769150165482,500.0,0.00013273,2]
[403092679,1769150166916,500.0,0.00013273,2]
[403092680,1769150168591,500.0,0.00013273,2]
[403092681,1769150177577,342.67,7.813e-05,2]
[403092682,1769150178041,685.34,8.524e-05,2]
[403092683,1769150178412,87.78317005,9.234e-05,2]
[403092684,1769150178475,940.22682995,9.234e-05,2]
[403092685,1769150178585,500.0,0.00013273,2]
[403092686,1769150178811,1370.68,9.944e-05,2]
[403092687,1769150179223,1713.35,0.00010655,2]
[403092688,1769150179651,2056.01,0.00011365,2]
[403092689,1769150180057,2398.68,0.00012075,2]
[403092690,1769150180540,1021.06317005,0.00012785,2]
[403092691,1769150180606,1720.28682995,0.00012785,2]
[403092692,1769150182474,5000.0,0.00013441,2]
[403092693,1769150205141,5000.0,0.00013315,2]
[403092694,1769150223369,501.83727549,0.00013273,2]
[403092695,1769150223443,501.46601283,0.00013273,2]
[403092696,1769150226816,500.0,0.00013273,2]
[403092697,1769150227216,3496.70671168,0.00013315,2]
[403092698,1769150227296,1503.29328832,0.00013315,2]
[403092699,1769150236181,4424.01,0.00013315,2]
[403092700,1769150237364,500.0,0.00013273,2]
[403092701,1769150237895,500.0,0.00013273,2]
[403092702,1769150239488,500.0,0.00013273,2]
[403092703,1769150239579,500.0,0.00013273,2]
[403092704,1769150239723,500.0,0.00013273,2]
[403092705,1769150240293,500.0,0.00013273,2]
[403092706,1769150240516,500.0,0.00013273,2]
[403092707,1769150254404,185.66,7.823e-05,2]
[403092708,1769150254581,371.33,8.534e-05,2]
[403092709,1769150254999,15.71671168,9.246e-05,2]
[403092710,1769150255067,541.27328832,9.246e-05,2]
[403092711,1769150255424,742.66,9.957e-05,2]
[403092712,1769150255826,928.32,0.00010668,2]
[403092713,1769150256257,1113.99,0.00011379,2]
[403092714,1769150256672,1299.65,0.00012091,2]
[403092715,1769150257083,1485.31,0.00012802,2]
[403092716,1769150284115,500.0,0.00013273,2]
[403092717,1769150296651,500.0,0.00013273,2]
[403092724,1769150330458,150.0,7.861e-05,2]
[403092725,1769150330856,208.83,8.576e-05,2]
[403092726,1769150331272,313.24,9.29e-05,2]
[403092727,1769150331697,417.66,0.00010005,2]
[403092728,1769150332464,522.07,0.0001072,2]
[403092729,1769150332891,626.49,0.00011434,2]
[403092730,1769150333295,650.51671168,0.00012149,2]
[403092731,1769150333347,80.38328832,0.00012149,2]
[403092732,1769150333699,835.32,0.00012864,2]
[403092733,1769150337430,9084.30671168,0.00013,2]
[403092734,1769150337482,10000.01,0.00013,2]
[403092735,1769150337534,10000.01,0.00013,2]
[403092736,1769150337586,10000.01,0.00013,2]
[403092737,1769150337636,10000.01,0.00013,2]
[403092738,1769150337686,5204.02328832,0.00013,2]
[403092739,1769150354412,293.21,0.00012329,2]
[403092740,1769150364799,244.34,0.00012329,2]
[403092741,1769150375416,203.62,0.00012329,2]
[403092742,1769150381355,687.38827911,0.00012212,2]
[403092743,1769150385790,169.68,0.00012329,2]
[403092744,1769150396186,848.44,0.00012329,2]
[403092746,1769150404468,185.9,5e-05,2]
[403092747,1769150411637,224.71,7.778e-05,2]
[403092748,1769150412050,449.42,8.485e-05,2]
[403092749,1769150412458,674.13,9.192e-05,2]
[403092750,1769150412879,898.84,9.899e-05,2]
[403092751,1769150413324,1123.55,0.00010606,2]
[403092752,1769150413936,1348.27,0.00011313,2]
[403092753,1769150414106,1572.98,0.0001202,2]
[403092754,1769150414529,1797.69,0.00012727,2]
[403092755,1769150444122,876.08,0.0001313,2]
[403092756,1769150444185,4123.92,0.0001313,2]
[403092757,1769150452793,5876.09,0.00012448,2]
[403092758,1769150452852,4123.91,0.00012448,2]
[403092759,1769150466363,5000.0,0.0001313,2]
[403092760,1769150488084,174.94,8.33e-05,2]
[403092761,1769150488520,349.87,9.087e-05,2]
[403092762,1769150488824,351.29,0.0001313,2]
[403092763,1769150488882,4648.71,0.0001313,2]
[403092764,1769150488964,524.81,9.844e-05,2]
[403092765,1769150489328,699.74,0.00010602,2]
[403092766,1769150489739,874.68,0.00011359,2]
[403092767,1769150490133,1049.61,0.00012116,2]
[403092768,1769150490537,1224.55,0.00012873,2]
[403092769,1769150563653,152.93,8.332e-05,2]
[403092770,1769150564054,305.86,9.089e-05,2]
[403092771,1769150564477,458.79,9.846e-05,2]
[403092772,1769150565042,611.72,0.00010604,2]
[403092773,1769150565451,764.65,0.00011361,2]
[403092774,1769150565865,917.58,0.00012119,2]
[403092775,1769150639922,150.0,8.347e-05,2]
[403092776,1769150640340,224.11,9.106e-05,2]
[403092777,1769150640771,336.17,9.864e-05,2]
[403092778,1769150641437,448.22,0.00010623,2]
[403092779,1769150641621,560.28,0.00011382,2]
[403092780,1769150642054,672.33,0.00012141,2]
[403092782,1769150715953,150.0,8.185e-05,2]
[403092783,1769150716361,163.25,8.93e-05,2]
[403092784,1769150716772,244.87,9.674e-05,2]
[403092785,1769150717200,326.49,0.00010418,2]
[403092786,1769150717604,408.12,0.00011162,2]
[403092787,1769150718013,489.74,0.00011906,2]
[403092788,1769150753981,5000.0,0.0001241,2]
[403092789,1769150774257,-571.36,0.0001265,2]
[403092790,1769150774281,-428.64,0.00012749,2]
[403092791,1769150775885,-1000.0,0.00012749,2]
[403092792,1769150776015,2926.48596777,0.0001241,2]
[403092793,1769150776124,-1000.0,0.00012749,2]
[403092794,1769150776415,-1000.0,0.00012749,2]
[403092795,1769150776772,-1000.0,0.00012749,2]
[403092796,1769150777228,-571.36,0.00012749,2]
[403092797,1769150777249,-194.06064935,0.00012889,2]
[403092798,1769150777273,-234.57935065,0.00012906,2]
[403092799,1769150777649,-65.42064935,0.00012906,2]
[403092800,1769150777670,-934.57935065,0.00012907,2]
[403092804,1769150778046,-1000.0,0.00012907,2]
[403092805,1769150778458,-1000.0,0.00012907,2]
[403092806,1769150778760,-1000.0,0.00012907,2]
[403092807,1769150779105,-1000.0,0.00012907,2]
[403092808,1769150779408,-1000.0,0.00012907,2]
[403092809,1769150779807,-63.25786887,0.00012907,2]
[403092810,1769150779830,-229.08497333,0.00013007,2]
[403092811,1769150779852,-270.94992946,0.00013007,2]
[403092812,1769150779873,-400.24411106,0.00013007,2]
[403092813,1769150779894,-36.46311728,0.00013007,2]
[403092815,1769150780266,-463.53688272,0.00013007,2]
[403092816,1769150780291,-500.0,0.00013007,2]
[403092817,1769150780314,-36.46311728,0.00013007,2]
[403092818,1769150780662,-463.53688272,0.00013007,2]
[403092819,1769150780687,-500.0,0.00013007,2]
[403092820,1769150780711,-36.46311728,0.00013007,2]
[403092821,1769150780992,-463.53688272,0.00013007,2]
[403092822,1769150781013,-536.46311728,0.00013007,2]
[403092823,1769150781391,-31.53422801,0.00013007,2]
[403092824,1769150781415,-500.0,0.00013007,2]
[403092825,1769150781442,-468.46577199,0.00013007,2]
[403092826,1769150781761,-31.53422801,0.00013007,2]
[403092827,1769150781785,-515.69523665,0.00013007,2]
[403092828,1769150781809,-452.77053534,0.00013007,2]
[403092830,1769150782157,-47.22946466,0.00013007,2]
[403092831,1769150782182,-500.0,0.00013007,2]
[403092832,1769150782204,-452.77053534,0.00013007,2]
[403092833,1769150782495,-47.22946466,0.00013007,2]
[403092834,1769150782521,-500.0,0.00013007,2]
[403092835,1769150782550,-452.77053534,0.00013007,2]
[403092836,1769150782923,-47.22946466,0.00013007,2]
[403092837,1769150782947,-500.0,0.00013007,2]
[403092838,1769150782971,-452.77053534,0.00013007,2]
[403092839,1769150783357,-47.22946466,0.00013007,2]
[403092840,1769150783383,-500.0,0.00013007,2]
[403092841,1769150783408,-452.77053534,0.00013007,2]
[403092842,1769150783736,-47.22946466,0.00013007,2]
[403092843,1769150783759,-500.0,0.00013007,2]